fUSD/lending_fUSD_20251117
["ID","MTS","AMOUNT","RATE_DAILY","PERIOD"]
[394173513,1763350245991,-709.58031405,0.00018,2]
[394173514,1763350246003,-1541.76364472,0.00018,2]
[394173517,1763350435123,500.0,0.0003,120]
[394173518,1763350557791,174.02,8.096e-05,2]
[394173519,1763350557987,174.02,9.715e-05,2]
[394173520,1763350558192,174.02,0.00011335,2]
[394173521,1763350558394,174.02,0.00012954,2]
[394173522,1763350558605,174.02,0.00014573,2]
[394173523,1763350558820,174.02,0.00016192,2]
[394173524,1763350681651,-3300.43907558,0.00016321,2]
[394173525,1763350681676,-195.0,0.00016321,2]
[394173526,1763350681705,-15465.56092442,0.00016322,2]
[394173527,1763350695011,411.428874,0.0001624,2]
[394173528,1763350771293,-300.0,0.00016321,2]
[394173529,1763350771323,-3700.0,0.00016322,2]
[394173530,1763350772662,-4000.0,0.00016322,2]
[394173531,1763350774082,-4000.0,0.00016322,2]
[394173532,1763350775291,-4000.0,0.00016322,2]
[394173533,1763350776397,-4000.0,0.00016322,2]
[394173534,1763350777424,-4000.0,0.00016322,2]
[394173535,1763350778483,-4000.0,0.00016322,2]
[394173536,1763350779639,-4000.0,0.00016322,2]
[394173537,1763350787248,-2000.0,0.00016322,2]
[394173539,1763350804820,2021.34682075,0.0001628,2]
[394173540,1763350804846,296.94178137,0.0001628,2]
[394173547,1763350947767,200.22259883,0.00016217,2]
[394173554,1763351011625,166.66,0.0001591,2]
[394173555,1763351011816,166.66,0.00016245,2]
[394173557,1763351026983,100000.0,0.00030137,120]
[394173559,1763351188163,156.8301534,0.0003013,120]
[394173593,1763351342174,150.0,0.00030136,120]
[394173605,1763351424990,427.26,0.00013699,2]
[394173609,1763351431814,-195.0,0.00016321,2]
[394173610,1763351431825,-341.8240265,0.00016438,2]
[394173611,1763351431837,-1707.54897056,0.00016438,2]
[394173612,1763351431849,-363.04382084,0.00016438,2]
[394173613,1763351431869,-52.1731821,0.00016438,2]
[394173614,1763351431879,-195.0,0.00016466,2]
[394173615,1763351431889,-585.0,0.00016572,2]
[394173616,1763351431899,-166.66,0.0001658,2]
[394173617,1763351431909,-250.0,0.00016625,2]
[394173618,1763351431919,-294.3288179,0.0001667,2]
[394173619,1763351431931,-1558.0911821,0.0001667,2]
[394173620,1763351431943,-1200.0,0.00016749,2]
[394173621,1763351431953,-798.9963,0.0001675,2]
[394173622,1763351431963,-13041.687,0.0001675,2]
[394173623,1763351431973,-1012.36,0.0001677,2]
[394173624,1763351431983,-15214.21446075,0.00016785,2]
[394173625,1763351431998,-4095.31450825,0.00016785,2]
[394173645,1763351437674,-5855.281031,0.00016785,2]
[394173646,1763351437684,-20000.02,0.00016799,2]
[394173647,1763351437694,-1054.07,0.0001685,2]
[394173648,1763351437704,-166.66,0.00016914,2]
[394173649,1763351437714,-200.0,0.00016922,2]
[394173650,1763351437723,-500.0,0.00016999,2]
[394173651,1763351437733,-333.19447221,0.00016999,2]
[394173652,1763351437743,-500.0,0.00016999,2]
[394173653,1763351437752,-627.94403136,0.00016999,2]
[394173654,1763351437762,-512.2306038,0.00016999,2]
[394173655,1763351437772,-277.35679052,0.00017021,2]
[394173656,1763351437783,-500.0,0.00017021,2]
[394173657,1763351437793,-500.0,0.00017021,2]
[394173658,1763351437803,-500.0,0.00017021,2]
[394173659,1763351437815,-500.0,0.00017021,2]
[394173660,1763351437825,-500.0,0.00017021,2]
[394173661,1763351437836,-500.0,0.00017021,2]
[394173662,1763351437845,-500.0,0.00017021,2]
[394173663,1763351437855,-500.0,0.00017021,2]
[394173664,1763351437864,-500.0,0.00017021,2]
[394173665,1763351437874,-500.0,0.00017021,2]
[394173666,1763351437885,-500.0,0.00017021,2]
[394173667,1763351437894,-322.6107,0.00017021,2]
[394173668,1763351437903,-165.99,0.00017124,2]
[394173669,1763351437913,-166.66,0.00017249,2]
[394173670,1763351437923,-263.0,0.00017452,2]
[394173671,1763351437934,-161.89,0.00017502,2]
[394173672,1763351437945,-166.66,0.00017584,2]
[394173673,1763351437959,-435.0,0.00017667,2]
[394173674,1763351437969,-357.24,0.00017667,2]
[394173675,1763351437979,-263.0,0.00017669,2]
[394173676,1763351437989,-169.0,0.00017674,2]
[394173677,1763351437999,-316.2668,0.0001773,2]
[394173678,1763351438009,-3022.6474106,0.00017749,2]
[394173679,1763351438018,-15761.553303,0.00017799,2]
[394173680,1763351438030,-5495.6647,0.000178,2]
[394173681,1763351438040,-2000.0,0.000178,2]
[394173682,1763351438050,-1010.0,0.000178,2]
[394173683,1763351438059,-791.0,0.00017808,2]
[394173684,1763351438069,-1246.31184,0.0001782,2]
[394173685,1763351438079,-54709.37848293,0.0001783,2]
[394173686,1763351438091,-200.0,0.00017855,2]
[394173687,1763351438100,-200.0,0.00017856,2]
[394173688,1763351438110,-200.0,0.00017856,2]
[394173689,1763351438120,-500.0,0.00017856,2]
[394173690,1763351438131,-500.0,0.00017856,2]
[394173691,1763351438140,-500.0,0.00017856,2]
[394173692,1763351438149,-500.0,0.00017856,2]
[394173693,1763351438159,-500.0,0.00017856,2]
[394173694,1763351438170,-500.42787663,0.00017873,2]
[394173695,1763351438180,-500.88775358,0.00017873,2]
[394173696,1763351438190,-500.0,0.00017899,2]
[394173697,1763351438199,-625.1585508,0.00017899,2]
[394173698,1763351438209,-500.0,0.00017899,2]
[394173699,1763351438218,-200.61424154,0.00017899,2]
[394173700,1763351438227,-150.0,0.00017899,2]
[394173701,1763351438494,-500.0,0.00017899,2]
[394173702,1763351438522,-207.10834346,0.00017899,2]
[394173703,1763351438533,-500.0,0.00017899,2]
[394173704,1763351438543,-150.0,0.00017899,2]
[394173705,1763351438553,-150.0,0.00017899,2]
[394173706,1763351438562,-500.0,0.00017899,2]
[394173707,1763351438572,-150.0,0.00017899,2]
[394173708,1763351438583,-250.0,0.00017899,2]
[394173709,1763351438593,-500.0,0.00017899,2]
[394173710,1763351438603,-161.0,0.000179,2]
[394173711,1763351438613,-167.74094469,0.000179,2]
[394173712,1763351438622,-164.11,0.000179,2]
[394173713,1763351438632,-2314.867,0.000179,2]
[394173714,1763351438642,-417.113,0.000179,2]
[394173715,1763351438650,-1000.0,0.000179,2]
[394173716,1763351438660,-1265.28437825,0.000179,2]
[394173717,1763351438670,-43205.38177069,0.000179,2]
[394173718,1763351438680,-607.9802581,0.000179,2]
[394173719,1763351438691,-500.0,0.00017911,2]
[394173720,1763351438702,-500.0,0.00017911,2]
[394173721,1763351438713,-500.0,0.00017911,2]
[394173722,1763351438723,-500.0,0.00017911,2]
[394173723,1763351438732,-500.0,0.00017911,2]
[394173724,1763351438742,-1246.31184,0.0001793,2]
[394173725,1763351438752,-195.0,0.00017953,2]
[394173726,1763351438762,-300.0,0.00017953,2]
[394173727,1763351438772,-250.0,0.00017953,2]
[394173728,1763351438782,-195.0,0.00017953,2]
[394173729,1763351438793,-150.0,0.00017954,2]
[394173730,1763351438803,-500.0,0.00017954,2]
[394173731,1763351438813,-500.0,0.00017954,2]
[394173732,1763351438823,-150.0,0.00017954,2]
[394173733,1763351438833,-500.0,0.00017954,2]
[394173734,1763351438843,-500.0,0.00017954,2]
[394173735,1763351438853,-168.4069949,0.00017962,2]
[394173736,1763351438863,-1183.6506362,0.00017962,2]
[394173737,1763351438873,-960.3169841,0.00017962,2]
[394173738,1763351438883,-500.0,0.00017966,2]
[394173739,1763351438893,-500.0,0.00017966,2]
[394173740,1763351438903,-500.0,0.00017966,2]
[394173741,1763351438912,-500.0,0.00017966,2]
[394173742,1763351438922,-500.0,0.00017966,2]
[394173743,1763351438931,-7692.0,0.00017973,2]
[394173744,1763351438941,-503.50967204,0.00017973,2]
[394173745,1763351438954,-504.33283396,0.00017973,2]
[394173746,1763351438964,-500.0,0.00017973,2]
[394173747,1763351438974,-500.0,0.00017973,2]
[394173748,1763351438984,-500.0,0.00017973,2]
[394173749,1763351438995,-500.0,0.00017973,2]
[394173750,1763351439005,-150.0,0.00017973,2]
[394173751,1763351439014,-202.32398809,0.00017973,2]
[394173752,1763351439026,-204.30716922,0.00017973,2]
[394173753,1763351439036,-1228.29445183,0.0001799,2]
[394173754,1763351439046,-500.0,0.00017998,2]
[394173755,1763351439056,-500.0,0.00017998,2]
[394173756,1763351439066,-508.96624547,0.00017999,2]
[394173757,1763351439076,-500.0,0.00017999,2]
[394173758,1763351439086,-500.0,0.00017999,2]
[394173759,1763351439096,-500.0,0.00017999,2]
[394173760,1763351439105,-500.0,0.00017999,2]
[394173761,1763351439115,-500.0,0.00017999,2]
[394173762,1763351439125,-500.0,0.00017999,2]
[394173763,1763351439136,-501.76256434,0.00017999,2]
[394173764,1763351439146,-202.30064336,0.00017999,2]
[394173765,1763351439156,-203.33231426,0.00017999,2]
[394173766,1763351439167,-200.0,0.00017999,2]
[394173767,1763351439177,-181.81403796,0.00017999,2]
[394173768,1763351439187,-46369.27731841,0.00017999,2]
[394173769,1763351439198,-500.0,0.00017999,2]
[394173770,1763351439208,-500.0,0.00017999,2]
[394173771,1763351439218,-500.0,0.00017999,2]
[394173772,1763351439227,-500.0,0.00017999,2]
[394173773,1763351439236,-500.0,0.00017999,2]
[394173774,1763351439246,-500.0,0.00017999,2]
[394173775,1763351439255,-500.0,0.00017999,2]
[394173776,1763351439264,-500.0,0.00017999,2]
[394173777,1763351439274,-500.0,0.00017999,2]
[394173778,1763351439285,-500.0,0.00017999,2]
[394173779,1763351439295,-501.79448901,0.00017999,2]
[394173780,1763351439305,-500.0,0.00017999,2]
[394173781,1763351439314,-191.41633386,0.00017999,2]
[394173782,1763351439324,-500.0,0.00017999,2]
[394173783,1763351439333,-500.0,0.00017999,2]
[394173784,1763351439344,-500.0,0.00017999,2]
[394173785,1763351439353,-500.0,0.00017999,2]
[394173786,1763351439363,-500.0,0.00017999,2]
[394173787,1763351439374,-500.0,0.00017999,2]
[394173788,1763351439385,-500.0,0.00017999,2]
[394173789,1763351439396,-500.0,0.00017999,2]
[394173790,1763351439406,-500.0,0.00017999,2]
[394173791,1763351439416,-500.0,0.00017999,2]
[394173792,1763351439426,-500.0,0.00017999,2]
[394173793,1763351439435,-500.0,0.00017999,2]
[394173794,1763351439448,-500.0,0.00017999,2]
[394173795,1763351439457,-500.0,0.00017999,2]
[394173796,1763351439467,-500.0,0.00017999,2]
[394173797,1763351439476,-500.0,0.00017999,2]
[394173798,1763351439486,-500.0,0.00017999,2]
[394173799,1763351439497,-503.77640014,0.00017999,2]
[394173800,1763351439506,-500.0,0.00017999,2]
[394173801,1763351439516,-500.0,0.00017999,2]
[394173802,1763351439525,-500.0,0.00017999,2]
[394173803,1763351439534,-500.0,0.00017999,2]
[394173804,1763351439544,-500.0,0.00017999,2]
[394173805,1763351439555,-500.0,0.00017999,2]
[394173806,1763351439564,-500.0,0.00017999,2]
[394173807,1763351439574,-500.0,0.00017999,2]
[394173808,1763351439585,-500.0,0.00017999,2]
[394173809,1763351439595,-500.0,0.00017999,2]
[394173810,1763351439606,-500.0,0.00017999,2]
[394173811,1763351439616,-500.0,0.00017999,2]
[394173812,1763351439626,-500.0,0.00017999,2]
[394173813,1763351439639,-500.0,0.00017999,2]
[394173814,1763351439649,-500.0,0.00017999,2]
[394173815,1763351439659,-500.0,0.00017999,2]
[394173816,1763351439668,-500.0,0.00017999,2]
[394173817,1763351439677,-500.0,0.00017999,2]
[394173818,1763351439687,-500.0,0.00017999,2]
[394173819,1763351439696,-500.0,0.00017999,2]
[394173820,1763351439706,-500.0,0.00017999,2]
[394173821,1763351439715,-450.0,0.00017999,2]
[394173822,1763351439725,-505.95560914,0.00017999,2]
[394173823,1763351439734,-196.39990074,0.00017999,2]
[394173824,1763351439743,-307.1059487,0.00017999,2]
[394173825,1763351439753,-500.0,0.00017999,2]
[394173826,1763351439763,-500.0,0.00017999,2]
[394173827,1763351439772,-500.0,0.00017999,2]
[394173828,1763351439781,-500.0,0.00017999,2]
[394173829,1763351439790,-500.0,0.00017999,2]
[394173830,1763351439800,-543.02507492,0.00017999,2]
[394173831,1763351439809,-13983.0,0.00018,2]
[394173832,1763351439819,-1892573.24256135,0.00018,2]
[394173833,1763351439987,-1434.265,0.00018,2]
[394173846,1763351446016,-575.2638752,0.00018,2]
[394173847,1763351446124,-1099.8023183,0.00018,2]
[394173848,1763351446304,-470.5968769,0.00018,2]
[394173849,1763351446386,-585.97096043,0.00018,2]
[394173864,1763351654371,1209.3,0.00019178,30]
[394173882,1763352171870,316271.86,0.00030137,120]
[394173883,1763352180439,555.0,0.00030136,120]
[394173884,1763352234411,155.0,0.00022,30]
[394173891,1763352552245,150.0,0.00030136,120]
[394173913,1763352631904,-3079.81148191,0.00016584,2]
[394173915,1763352631915,-533.36121799,0.00016584,2]
[394173917,1763352631956,-965.20770708,0.00016584,2]
[394173918,1763352632061,-15095.69737572,0.00016584,2]
[394173919,1763352632072,-253.49999,0.00016584,2]
[394173920,1763352632083,-434.30330845,0.00016584,2]
[394173932,1763352637855,-964.0942,0.00016584,2]
[394173933,1763352637909,-328.31959918,0.00016584,2]
[394173934,1763352638020,-2711.53140201,0.00016584,2]
[394174105,1763352639855,-772.24931745,0.00016584,2]
[394174107,1763352639867,-1107.25095682,0.00016584,2]
[394174119,1763352639960,-9547.4448805,0.00016584,2]
[394174423,1763352643244,-34680.52316289,0.00016584,2]
[394174425,1763352643256,-305.0,0.00016682,2]
[394174427,1763352643269,-160.0,0.00016682,2]
[394174430,1763352643282,-250.0,0.00016683,2]
[394174432,1763352643296,-195.0,0.00016683,2]
[394174435,1763352643313,-300.0,0.00016683,2]
[394174438,1763352643325,-195.0,0.00016683,2]
[394174440,1763352643338,-818.0,0.00016947,2]
[394174442,1763352643354,-151.0,0.00017023,2]
[394174445,1763352643367,-277.35679052,0.00017023,2]
[394174447,1763352643379,-818.0,0.00017127,2]
[394174449,1763352643393,-818.0,0.00017157,2]
[394174452,1763352643406,-150.0,0.00017215,2]
[394174454,1763352643419,-818.0,0.00017252,2]
[394174456,1763352643433,-818.0,0.00017268,2]
[394174459,1763352643444,-818.0,0.00017431,2]
[394174461,1763352643456,-818.0,0.00017442,2]
[394174463,1763352643469,-1200.0,0.00017467,2]
[394174466,1763352643482,-1962.0,0.00017468,2]
[394174468,1763352643493,-300.0,0.00017531,2]
[394174470,1763352643505,-1962.0,0.00017532,2]
[394174473,1763352643517,-1962.0,0.00017598,2]
[394174475,1763352643527,-1962.0,0.00017623,2]
[394174477,1763352643538,-1962.0,0.00017684,2]
[394174479,1763352643550,-267.6941204,0.00017689,2]
[394174482,1763352643562,-1962.0,0.0001769,2]
[394174484,1763352643576,-1815.0,0.000177,2]
[394174486,1763352643587,-1962.0,0.00017718,2]
[394174488,1763352643597,-1962.0,0.00017726,2]
[394174491,1763352643607,-200.0,0.00017768,2]
[394174493,1763352643618,-1962.0,0.00017776,2]
[394174495,1763352643631,-2000.0,0.000178,2]
[394174497,1763352643642,-333.0,0.000178,2]
[394174500,1763352643654,-1962.0,0.0001788,2]
[394174502,1763352643668,-14185.3979727,0.0001789,2]
[394174504,1763352643679,-333.69,0.000179,2]
[394174507,1763352643691,-1851.894,0.000179,2]
[394174510,1763352643702,-38884.84359363,0.000179,2]
[394174514,1763352643717,-276.56018784,0.000179,2]
[394174517,1763352643729,-547.01373195,0.000179,2]
[394174519,1763352643741,-376.79586072,0.000179,2]
[394174521,1763352643752,-500.0,0.00017973,2]
[394174523,1763352643763,-500.0,0.00017973,2]
[394174525,1763352643775,-196.33,0.00017989,2]
[394174528,1763352643785,-322.6107,0.00017989,2]
[394174530,1763352643796,-500.0,0.00017989,2]
[394174532,1763352643807,-500.0,0.00017989,2]
[394174534,1763352643819,-500.0,0.00017989,2]
[394174536,1763352643830,-500.0,0.00017989,2]
[394174538,1763352643841,-500.0,0.00017989,2]
[394174541,1763352643852,-500.0,0.00017989,2]
[394174543,1763352643863,-500.0,0.00017989,2]
[394174545,1763352643874,-500.0,0.00017989,2]
[394174547,1763352643885,-500.0,0.00017989,2]
[394174549,1763352643896,-500.0,0.00017989,2]
[394174552,1763352643907,-500.0,0.00017989,2]
[394174554,1763352643919,-163.72,0.0001799,2]
[394174556,1763352643930,-500.0,0.00017999,2]
[394174558,1763352643941,-500.0,0.00017999,2]
[394174561,1763352643953,-500.0,0.00017999,2]
[394174563,1763352643964,-500.0,0.00017999,2]
[394174565,1763352643975,-289702.20392972,0.00018,2]
[394174801,1763352646277,-57603.18954876,0.00018,2]
[394174808,1763352646331,-500.4799978,0.00018,2]
[394174812,1763352646390,-3285.4368,0.00018,2]
[394174813,1763352646408,-2937.83886451,0.00018,2]
[394174814,1763352646422,-3209.47777559,0.00018,2]
[394174816,1763352646436,-800.62637526,0.00018,2]
[394174818,1763352646450,-366.50645383,0.00018,2]
[394174821,1763352646464,-709.22079202,0.00018,2]
[394174823,1763352646476,-1025.6751975,0.00018,2]
[394174825,1763352646487,-3939.2679698,0.00018,2]
[394174827,1763352646499,-830.87456,0.00018,2]
[394174830,1763352646511,-706.63819316,0.00018023,2]
[394174832,1763352646522,-1000.0,0.00018082,2]
[394174834,1763352646533,-300.0,0.00018124,2]
[394174836,1763352646544,-150.0,0.00018124,2]
[394174839,1763352646554,-150.0,0.00018124,2]
[394174841,1763352646566,-150.0,0.00018124,2]
[394174843,1763352646577,-193.0,0.00018351,2]
[394174845,1763352646588,-250.0,0.00018351,2]
[394174847,1763352646599,-195.0,0.00018351,2]
[394174906,1763352647031,-257.61787631,0.00018351,2]
[394174910,1763352647058,-300.0,0.00018351,2]
[394174912,1763352647077,-250.0,0.00018351,2]
[394174914,1763352647087,-195.0,0.00018351,2]
[394174916,1763352647096,-189.33853647,0.00018351,2]
[394174918,1763352647106,-300.0,0.00018351,2]
[394174920,1763352647115,-300.0,0.00018351,2]
[394174922,1763352647124,-300.0,0.00018351,2]
[394174924,1763352647133,-195.0,0.00018351,2]
[394174927,1763352647143,-287.61899177,0.00018392,2]
[394174929,1763352647153,-263.0,0.00018409,2]
[394174931,1763352647162,-263.0,0.00018489,2]
[394174933,1763352647170,-1000.0,0.00018506,2]
[394174935,1763352647179,-166.66,0.00018512,2]
[394174936,1763352647191,-360.28930345,0.00018521,2]
[394174938,1763352647201,-166.67,0.00018527,2]
[394174941,1763352647210,-652.71373299,0.00018612,2]
[394175448,1763353134250,6000.0,0.00030137,120]
[394175450,1763353336642,1133.0,0.000165,6]
[394175458,1763353612688,32475.0388803,0.000162,5]
[394175463,1763353740726,150.0,0.00030136,120]
[394175542,1763353832251,-2053.82,0.00016438,2]
[394175543,1763353832262,-250.0,0.0001649,2]
[394175544,1763353832272,-300.0,0.00016543,2]
[394175545,1763353832281,-195.0,0.00016543,2]
[394175546,1763353832291,-250.0,0.00017,2]
[394175547,1763353832300,-999.0,0.00017117,3]
[394175548,1763353832310,-168.0,0.00017272,2]
[394175549,1763353832319,-1000.0,0.00017314,2]
[394175550,1763353832329,-168.0,0.00017454,2]
[394175551,1763353832339,-168.0,0.00017553,2]
[394175552,1763353832348,-168.0,0.00017752,2]
[394175553,1763353832357,-542.47033989,0.00017807,2]
[394175554,1763353832367,-168.0,0.00017845,2]
[394175555,1763353832376,-1000.0,0.000179,2]
[394175556,1763353832385,-300.0,0.00017906,2]
[394175557,1763353832395,-184.0,0.00017906,2]
[394175558,1763353832404,-144450.6676293,0.00017907,2]
[394175559,1763353832416,-133824.55392736,0.00017907,2]
[394175560,1763353832427,-9440.50819118,0.00017907,2]
[394175561,1763353832442,-254.160016,0.00017907,2]
[394175562,1763353832453,-816.92776542,0.00017907,2]
[394175564,1763353832464,-1188.62105213,0.00017907,2]
[394175576,1763353838055,-2879.35656815,0.00017907,2]
[394175577,1763353838071,-749.9999998,0.00017907,2]
[394175578,1763353838173,-125254.11280183,0.00017907,2]
[394175579,1763353838184,-709.31030113,0.00017907,2]
[394175580,1763353838194,-286.49762542,0.00017907,2]
[394175581,1763353838204,-263.39225105,0.00017907,2]
[394175582,1763353838215,-1276.72402537,0.00017907,2]
[394175583,1763353838225,-637.09435826,0.00017907,2]
[394175584,1763353838235,-200.0,0.00017924,2]
[394175585,1763353838246,-501.38602614,0.00017973,2]
[394175586,1763353838256,-162.28209688,0.00017973,2]
[394175587,1763353838266,-500.0,0.00017973,2]
[394175588,1763353838276,-170.86303096,0.00017973,2]
[394175589,1763353838286,-630.75143934,0.00017973,2]
[394175590,1763353838295,-500.0,0.00017973,2]
[394175591,1763353838305,-277.35679052,0.00017988,2]
[394175592,1763353838314,-818.86296788,0.0001799,2]
[394175593,1763353838324,-818.86296788,0.0001799,2]
[394175594,1763353838334,-500.0,0.00017999,2]
[394175595,1763353838343,-500.0,0.00017999,2]
[394175596,1763353838353,-500.0,0.00017999,2]
[394175597,1763353838362,-632.41209536,0.00017999,2]
[394175598,1763353838372,-500.0,0.00017999,2]
[394175599,1763353838381,-500.0,0.00017999,2]
[394175600,1763353838391,-500.0,0.00017999,2]
[394175601,1763353838400,-500.0,0.00017999,2]
[394175602,1763353838410,-500.0,0.00017999,2]
[394175603,1763353838420,-630.17869963,0.00017999,2]
[394175604,1763353838429,-300.0,0.00017999,2]
[394175605,1763353838439,-475.65819157,0.00017999,2]
[394175606,1763353838448,-557.08118639,0.00017999,2]
[394175607,1763353838458,-500.0,0.00017999,2]
[394175609,1763353838467,-500.0,0.00017999,2]
[394175611,1763353838477,-500.0,0.00017999,2]
[394175613,1763353838486,-500.0,0.00017999,2]
[394175615,1763353838495,-500.0,0.00017999,2]
[394175617,1763353838504,-349.6801475,0.00017999,2]
[394175619,1763353838513,-500.0,0.00017999,2]
[394175621,1763353838522,-500.0,0.00017999,2]
[394175623,1763353838532,-500.0,0.00017999,2]
[394175625,1763353838542,-500.0,0.00017999,2]
[394175627,1763353838551,-500.0,0.00017999,2]
[394175629,1763353838560,-500.0,0.00017999,2]
[394175631,1763353838569,-300.0,0.00017999,2]
[394175633,1763353838578,-500.0,0.00017999,2]
[394175635,1763353838588,-300.0,0.00017999,2]
[394175637,1763353838597,-500.0,0.00017999,2]
[394175639,1763353838607,-500.0,0.00017999,2]
[394175641,1763353838615,-196.39990074,0.00017999,2]
[394175643,1763353838624,-505.95560914,0.00017999,2]
[394175645,1763353838634,-500.0,0.00017999,2]
[394175647,1763353838643,-500.0,0.00017999,2]
[394175649,1763353838652,-500.0,0.00017999,2]
[394175651,1763353838661,-500.0,0.00017999,2]
[394175653,1763353838671,-500.0,0.00017999,2]
[394175655,1763353838680,-300.0,0.00017999,2]
[394175657,1763353838689,-500.0,0.00017999,2]
[394175659,1763353838698,-500.0,0.00017999,2]
[394175661,1763353838708,-500.0,0.00017999,2]
[394175663,1763353838717,-300.0,0.00017999,2]
[394175665,1763353838727,-500.0,0.00017999,2]
[394175667,1763353838739,-303.39876013,0.00017999,2]
[394175669,1763353838749,-500.0,0.00017999,2]
[394175671,1763353838758,-500.0,0.00017999,2]
[394175674,1763353838767,-501.79448901,0.00017999,2]
[394175675,1763353838779,-500.0,0.00017999,2]
[394175677,1763353838788,-500.0,0.00017999,2]
[394175679,1763353838797,-307.1059487,0.00017999,2]
[394175681,1763353838806,-500.0,0.00017999,2]
[394175683,1763353838817,-500.0,0.00017999,2]
[394175685,1763353838826,-500.0,0.00017999,2]
[394175687,1763353838836,-300.0,0.00017999,2]
[394175689,1763353838846,-500.0,0.00017999,2]
[394175691,1763353838855,-500.0,0.00017999,2]
[394175693,1763353838864,-300.0,0.00017999,2]
[394175695,1763353838874,-500.0,0.00017999,2]
[394175697,1763353838884,-500.0,0.00017999,2]
[394175699,1763353838893,-500.0,0.00017999,2]
[394175701,1763353838902,-500.0,0.00017999,2]
[394175703,1763353838912,-500.0,0.00017999,2]
[394175705,1763353838922,-500.0,0.00017999,2]
[394175707,1763353838932,-500.0,0.00017999,2]
[394175709,1763353838942,-593.72256743,0.00017999,2]
[394175711,1763353838951,-500.0,0.00017999,2]
[394175713,1763353838960,-500.0,0.00017999,2]
[394175715,1763353838970,-500.0,0.00017999,2]
[394175716,1763353838980,-1773737.70097682,0.00018,2]
[394175758,1763353839390,-33128.65659023,0.00018,2]
[394175760,1763353839402,-625.89475458,0.00018,2]
[394175763,1763353839417,-1247.49236118,0.00018,2]
[394175766,1763353839436,-1811.16,0.00018,2]
[394175833,1763353840192,-280.26807407,0.00017807,2]
[394175835,1763353840203,-977.10710117,0.00018,2]
[394175837,1763353840215,-1930.73770265,0.00018,2]
[394175839,1763353840226,-1108.28618409,0.00018,2]
[394175854,1763353840355,-502043.45293023,0.00018,2]
[394176478,1763353846597,-3428.4499999,0.00017907,2]
[394176526,1763354086880,405.89,0.00013699,2]
[394176542,1763354688638,1148.83,0.00019178,30]
[394176570,1763354946346,150.0,0.00030135,120]
[394176816,1763355032261,-177.22059077,0.00016908,2]
[394176817,1763355032270,-310.0,0.00016908,2]
[394176818,1763355032280,-47.17437789,0.0001691,2]
[394176819,1763355032367,-252.82562211,0.0001691,2]
[394176820,1763355032377,-250.0,0.0001691,2]
[394176821,1763355032387,-195.0,0.00016911,2]
[394176822,1763355032396,-88.37468402,0.00016915,2]
[394176823,1763355032422,-61.62531598,0.00016915,2]
[394176824,1763355032433,-341.0,0.00016985,2]
[394176825,1763355032443,-246.73006799,0.00016986,2]
[394176826,1763355032454,-357.0363872,0.00016986,2]
[394176827,1763355032465,-5680.87185787,0.00016986,2]
[394176828,1763355032477,-7523.48168694,0.00016986,2]
[394176829,1763355032488,-2641.34,0.00017008,2]
[394176830,1763355032498,-200.0,0.00017028,2]
[394176831,1763355032507,-1852.42,0.00017051,2]